bitfinex-derivatives/quotes_BTCF0:USTF0_20251028
["timestamp","ask_amount","ask_price","bid_price","bid_amount"]
[1761685641265,0.4211,112740.0,112720.0,0.3258]
[1761685641569,0.4211,112740.0,112620.0,0.01353]
[1761685641570,0.0249,112730.0,112620.0,0.01353]
[1761685641754,0.00999999,112620.0,112580.0,0.01353]
[1761685641952,0.1392,112610.0,112560.0,0.15908731]
[1761685642150,0.27645744,112570.0,112550.0,0.01353]
[1761685642352,0.69275488,112560.0,112540.0,0.01353]
[1761685642551,0.00010627,112550.0,112530.0,0.22921505]
[1761685642759,0.27645744,112540.0,112520.0,0.17229555]
[1761685642960,8.7e-05,112530.0,112500.0,0.15573]
[1761685643161,0.042767,112530.0,112520.0,0.01353]
[1761685643463,0.55568188,112530.0,112500.0,0.01353]
[1761685643657,0.27645744,112510.0,112490.0,0.00010503]
[1761685643965,0.69563597,112500.0,112490.0,0.00010503]
[1761685644153,0.27645744,112490.0,112470.0,0.02216]
[1761685644463,0.05467027,112490.0,112480.0,0.01353]
[1761685644652,0.35502333,112490.0,112460.0,0.01353]
[1761685644853,0.14284,112480.0,112470.0,0.04456]
[1761685645158,0.47525611,112480.0,112470.0,0.04456]
[1761685645363,0.45136049,112480.0,112460.0,0.01353]
[1761685645550,0.27913744,112470.0,112440.0,0.01502428]
[1761685645750,0.30010232,112450.0,112440.0,0.01502428]
[1761685645957,0.33209259,112450.0,112420.0,0.01353]
[1761685646260,0.33209259,112450.0,112420.0,0.05809]
[1761685646261,0.7216,112430.0,112420.0,0.05809]
[1761685646563,1.03012939,112430.0,112420.0,0.05809]
[1761685646758,0.75367195,112430.0,112420.0,0.07162]
[1761685647258,1.03012939,112430.0,112420.0,0.12258]
[1761685647465,0.75367195,112430.0,112420.0,0.18067]
[1761685647654,0.75367195,112430.0,112420.0,1.70101]
[1761685647861,0.75367195,112430.0,112420.0,1.96746744]
[1761685648061,0.75367195,112430.0,112420.0,1.69101]
[1761685648256,0.72035219,112430.0,112420.0,1.69101]
[1761685648457,0.72035219,112430.0,112420.0,1.97014744]
[1761685648651,0.3258,112440.0,112430.0,0.02238]
[1761685648856,0.38444488,112460.0,112450.0,0.04456]
[1761685649050,0.41644374,112460.0,112450.0,0.18748]
[1761685649255,0.6692563,112460.0,112450.0,0.04456]
[1761685649456,0.41644374,112460.0,112450.0,0.16534]
[1761685649661,0.69299423,112460.0,112440.0,0.01353]
[1761685649856,0.63725744,112450.0,112440.0,0.05809]
[1761685650055,0.73985844,112450.0,112440.0,0.05809]
[1761685650257,0.73985844,112450.0,112440.0,0.15645]
[1761685650560,0.463401,112450.0,112440.0,0.20101]
[1761685650761,0.463401,112450.0,112440.0,0.80101]
[1761685650961,0.463401,112450.0,112440.0,0.48014744]
[1761685651163,0.463401,112450.0,112440.0,0.47746744]
[1761685651364,0.463401,112450.0,112440.0,0.20101]
[1761685651563,0.43140214,112450.0,112440.0,0.20101]
[1761685652565,0.43140214,112450.0,112440.0,0.03591]
[1761685652566,0.70785958,112450.0,112440.0,0.03591]
[1761685652765,0.70785958,112450.0,112440.0,0.17891]
[1761685652968,0.43140214,112450.0,112440.0,0.20109]
[1761685653269,0.70785958,112450.0,112440.0,0.20109]
[1761685653458,0.34705958,112450.0,112440.0,0.15649]
[1761685653658,1.20540958,112450.0,112420.0,1.51353]
[1761685653854,0.0716,112420.0,112410.0,0.13398265]
[1761685654069,8.769e-05,112420.0,112410.0,0.55336009]
[1761685654365,0.49755,112420.0,112410.0,8.265e-05]
[1761685654566,0.49755,112420.0,112410.0,0.14312265]
[1761685654765,0.49755,112420.0,112410.0,0.14308265]
[1761685655164,0.78287023,112420.0,112410.0,8.265e-05]
[1761685655365,0.50909279,112420.0,112390.0,0.14304]
[1761685655558,0.7216,112400.0,112390.0,0.27694]
[1761685655760,0.7216,112400.0,112390.0,0.28582301]
[1761685656158,0.7216,112400.0,112390.0,0.88590301]
[1761685656359,0.85843342,112400.0,112390.0,0.1339]
[1761685656564,0.85843342,112400.0,112390.0,0.14312]
[1761685656964,0.72168342,112400.0,112390.0,0.27702]
[1761685657167,0.85843342,112400.0,112390.0,0.1339]
[1761685657368,0.13675,112390.0,112380.0,0.03994]
[1761685657566,0.16404,112360.0,112350.0,0.36086798]
[1761685657770,0.16404,112360.0,112310.0,0.3608]
[1761685657771,0.13675,112320.0,112310.0,0.3608]
[1761685658067,0.06515,112310.0,112300.0,0.14368]
[1761685658373,0.13675,112300.0,112290.0,0.3608]
[1761685658560,0.36348,112310.0,112280.0,0.44977984]
[1761685658561,0.1238,112290.0,112280.0,0.3608]
[1761685658764,0.1238,112280.0,112270.0,0.3608]
[1761685658962,0.1238,112260.0,112250.0,0.74814745]
[1761685659161,0.3608,112280.0,112270.0,0.1339]
[1761685659370,0.3608,112280.0,112270.0,0.16881593]
[1761685659573,0.36090826,112290.0,112280.0,0.1339]
[1761685659760,0.43187393,112300.0,112290.0,0.17384]
[1761685659964,0.3608,112310.0,112290.0,1.82092]
[1761685660163,0.3608,112310.0,112300.0,0.28650942]
[1761685660460,0.3608,112310.0,112300.0,0.28918942]
[1761685660461,0.25334,112310.0,112300.0,0.28918942]
[1761685660772,0.3608,112340.0,112330.0,0.1339]
[1761685661067,0.43249326,112340.0,112320.0,0.03994]
[1761685661266,0.49764326,112340.0,112330.0,0.15260942]
[1761685661471,0.13675,112310.0,112300.0,0.04032574]
[1761685661763,0.85835,112310.0,112300.0,0.04032574]
[1761685662162,0.13675,112260.0,112250.0,0.0140718]
[1761685662365,7.061e-05,112260.0,112250.0,0.5196718]
[1761685662667,7.061e-05,112260.0,112250.0,1.74791503]
[1761685662859,0.3608,112290.0,112280.0,0.06788]
[1761685663060,0.43321238,112310.0,112290.0,0.1339]
[1761685663259,0.20916238,112310.0,112300.0,0.1448]
[1761685663568,0.3608,112320.0,112310.0,0.1339]
[1761685663770,0.36086847,112320.0,112310.0,0.1339]
[1761685664072,0.49761847,112320.0,112290.0,0.40074]
[1761685664272,0.13675,112310.0,112300.0,0.14496]
[1761685664670,0.49755,112310.0,112280.0,0.37327565]
[1761685664975,0.49755,112310.0,112300.0,0.145]
[1761685665470,0.3608,112310.0,112300.0,0.2789]
[1761685665971,0.36086847,112320.0,112300.0,1.01565565]
[1761685666165,0.36086847,112320.0,112300.0,1.01297565]
[1761685666364,0.49755,112310.0,112290.0,0.03994]
[1761685666572,0.13675,112270.0,112260.0,0.3608]
[1761685666775,0.04046,112290.0,112260.0,0.46862]
[1761685666776,0.3608,112290.0,112260.0,0.46862]
[1761685666965,0.3608,112300.0,112270.0,0.73407565]
[1761685667162,0.3608,112300.0,112270.0,0.3608]
[1761685667163,0.13675,112280.0,112270.0,0.3608]
[1761685667367,0.13675,112260.0,112250.0,0.0140718]
[1761685667686,0.53801,112260.0,112250.0,0.0140718]
[1761685667870,0.3608,112270.0,112250.0,0.5087718]
[1761685668181,0.3608,112270.0,112260.0,0.14552]
[1761685668479,0.36090141,112280.0,112260.0,0.2134]
[1761685668871,0.42605141,112280.0,112250.0,0.3748718]
[1761685669065,0.3608,112270.0,112260.0,0.14556]
[1761685669277,0.36090141,112280.0,112270.0,0.06788]
[1761685669496,0.3608,112300.0,112270.0,0.87065565]
[1761685669780,0.0716,112290.0,112280.0,0.50632]
[1761685669976,0.13675,112290.0,112280.0,0.14552]
[1761685670280,0.49755,112290.0,112280.0,0.14556]
[1761685670480,0.13675,112290.0,112260.0,0.40074]
[1761685670678,0.3608,112300.0,112270.0,0.87959565]
[1761685670980,0.3608,112290.0,112280.0,0.14548]
[1761685671176,0.3608,112300.0,112280.0,0.14548]
[1761685671578,0.3608,112310.0,112300.0,0.1339]
[1761685671776,0.3608,112330.0,112320.0,0.06788]
[1761685672080,0.49755,112330.0,112320.0,0.1454]
[1761685672577,0.49755,112330.0,112320.0,0.14544]
[1761685672578,0.87082565,112330.0,112320.0,0.14544]
[1761685672769,0.49755,112330.0,112320.0,0.14544]
[1761685672971,0.02144,112320.0,112280.0,0.3608]
[1761685673175,0.02144,112320.0,112290.0,0.21328]
[1761685673176,0.4498439,112300.0,112290.0,0.21328]
[1761685673379,0.4498439,112300.0,112290.0,0.2793]
[1761685673683,0.4498439,112300.0,112290.0,0.69251565]
[1761685673880,0.0890439,112300.0,112290.0,1.05331565]
[1761685674083,0.0890439,112300.0,112290.0,0.68004]
[1761685674284,0.0890439,112300.0,112290.0,0.31824]
[1761685674576,0.06515,112300.0,112290.0,0.06788]
[1761685674781,0.4498392,112310.0,112290.0,0.31912]
[1761685674982,0.13675,112300.0,112290.0,0.14528]
[1761685675182,0.4498392,112310.0,112290.0,0.31912]
[1761685675385,0.3608,112310.0,112300.0,0.1339]
[1761685675680,0.3608,112330.0,112320.0,0.1339]
[1761685675881,0.4498169,112340.0,112330.0,0.1339]
[1761685676088,0.4498141,112340.0,112320.0,0.14516]
[1761685676385,0.5214172,112340.0,112330.0,0.21304]
[1761685676885,0.3608,112340.0,112330.0,0.27906]
[1761685677074,0.05567109,112340.0,112330.0,0.65233565]
[1761685677375,0.50497729,112350.0,112330.0,0.63986]
[1761685677577,0.42435102,112350.0,112340.0,0.1339]
[1761685677782,0.0890116,112340.0,112310.0,0.3608]
[1761685678088,0.0890389,112310.0,112290.0,0.40074]
[1761685678385,0.4348389,112310.0,112300.0,0.27922]
[1761685679778,0.5715889,112310.0,112300.0,0.14532]
[1761685679983,0.4348389,112310.0,112300.0,0.27922]
[1761685680384,0.5064389,112310.0,112300.0,0.27922]
[1761685680772,0.5715889,112310.0,112290.0,0.3608]
[1761685680989,0.0890592,112280.0,112260.0,0.40074]
[1761685681188,0.0890592,112280.0,112270.0,0.27898]
[1761685681373,0.4498542,112290.0,112270.0,0.27898]
[1761685681580,0.48191393,112290.0,112280.0,0.11672943]
[1761685681881,0.5927579,112290.0,112280.0,0.145]
[1761685682080,0.1429067,112290.0,112280.0,0.65485565]
[1761685682283,0.1429067,112290.0,112280.0,1.10471485]
[1761685682483,0.06295964,112290.0,112280.0,1.05987394]
[1761685682783,0.04722335,112310.0,112300.0,0.1272832]
[1761685682973,0.04598798,112310.0,112300.0,1.36719885]
[1761685683174,0.3608,112340.0,112330.0,0.03824]
[1761685683383,0.74996929,112350.0,112340.0,0.03824]
[1761685683582,0.4497914,112370.0,112350.0,0.01912]
[1761685683888,0.4497914,112370.0,112340.0,0.37327565]
[1761685683889,0.5239214,112370.0,112360.0,0.22248]
[1761685684082,0.04549,112320.0,112290.0,0.00999999]
[1761685684285,0.3608,112310.0,112300.0,0.22244]
[1761685684496,0.52821443,112340.0,112330.0,0.0387]
[1761685684780,0.43919983,112340.0,112330.0,0.59587565]
[1761685684978,0.43919983,112340.0,112330.0,0.2226]
[1761685685181,0.43919983,112350.0,112340.0,0.0774]
[1761685685380,0.3608,112350.0,112340.0,0.08008]
[1761685685782,0.3608,112360.0,112350.0,0.0774]
[1761685685983,0.43919983,112390.0,112380.0,0.0774]
[1761685686181,0.3608,112390.0,112380.0,0.45067565]
[1761685686374,0.3608,112390.0,112380.0,0.59615565]
[1761685686579,0.3608,112390.0,112380.0,0.59883565]
[1761685687089,0.3608,112390.0,112380.0,0.68781535]
[1761685687287,0.3608,112400.0,112390.0,0.0774]
[1761685687482,0.3608,112400.0,112390.0,0.45067565]
[1761685687687,0.3608,112400.0,112390.0,0.0774]
[1761685687887,0.3608,112400.0,112390.0,0.45067565]
[1761685688083,0.7216,112400.0,112390.0,0.2228]
[1761685688280,0.38412504,112400.0,112390.0,0.59875565]
[1761685688481,0.3608,112400.0,112390.0,0.59875565]
[1761685688682,0.38412504,112400.0,112390.0,0.59875565]
[1761685688993,0.39197039,112400.0,112390.0,0.59875565]
[1761685689283,0.3840763,112400.0,112390.0,0.68772735]
[1761685689486,0.0232763,112400.0,112390.0,0.95955565]
[1761685689691,0.3840763,112410.0,112400.0,0.08604]
[1761685689984,0.3840763,112410.0,112400.0,0.46199565]
[1761685690283,0.38407647,112410.0,112400.0,0.45931565]
[1761685690489,0.3608,112410.0,112400.0,0.46199565]
[1761685690678,0.36683546,112420.0,112410.0,0.01929]
[1761685690878,0.36683546,112420.0,112410.0,0.64877155]
[1761685691488,0.00603546,112420.0,112410.0,1.01853207]
[1761685691681,0.00603546,112420.0,112410.0,1.01679706]
[1761685692693,0.00603546,112420.0,112410.0,1.10575316]
[1761685693199,0.3608,112440.0,112430.0,0.0351]
[1761685693397,0.50416104,112450.0,112440.0,0.0351]
[1761685693690,0.50416104,112450.0,112440.0,0.40837565]
[1761685693896,0.19741,112440.0,112430.0,0.37327565]
[1761685694085,0.3608,112440.0,112430.0,0.55337565]
[1761685694284,0.40612,112440.0,112430.0,0.55337565]
[1761685694489,0.6980631,112440.0,112430.0,0.55333565]
[1761685694786,0.58586445,112440.0,112430.0,0.55333565]
[1761685694984,0.38845445,112440.0,112430.0,0.55333565]
[1761685695190,0.3608,112450.0,112440.0,0.0351]
[1761685695491,0.38828598,112450.0,112440.0,0.40837565]
[1761685696091,0.3608,112450.0,112440.0,0.40837565]
[1761685696489,0.3608,112450.0,112440.0,0.41105565]
[1761685696694,0.44269142,112450.0,112440.0,0.40837565]
[1761685696994,0.56361103,112450.0,112440.0,0.40837565]
[1761685697304,0.41152103,112450.0,112440.0,0.40837565]
[1761685697597,0.05072103,112450.0,112440.0,1.09730785]
[1761685697782,0.05072103,112450.0,112440.0,0.49998785]
[1761685697981,0.02743095,112450.0,112440.0,0.86078785]
[1761685698187,0.05446047,112450.0,112440.0,2.36078785]
[1761685698382,0.03117039,112450.0,112440.0,2.44972021]
[1761685698585,0.03117039,112460.0,112450.0,0.1064742]
[1761685698791,0.3608,112480.0,112470.0,0.0351]
[1761685698988,0.3608,112490.0,112480.0,0.0351]
[1761685699196,0.51289,112490.0,112480.0,0.41714174]
[1761685699389,0.6017826,112490.0,112460.0,0.3608]
[1761685699588,0.55821,112470.0,112460.0,0.37327565]
[1761685699786,0.2410065,112460.0,112440.0,1.8608]
[1761685699995,0.15209,112460.0,112450.0,0.14464]
[1761685700194,0.15209,112460.0,112450.0,0.55301565]
[1761685700397,0.2410065,112460.0,112450.0,0.17974]
[1761685700589,0.2410065,112460.0,112450.0,0.55301565]
[1761685700784,0.6018065,112460.0,112440.0,1.86954648]
[1761685700984,0.6018065,112460.0,112450.0,0.51795565]
[1761685701287,0.6018065,112460.0,112410.0,0.00011037]
[1761685701288,0.2410381,112420.0,112410.0,0.00011037]
[1761685701494,0.0889601,112410.0,112400.0,0.1555]
[1761685701694,0.0889601,112410.0,112390.0,0.1452]
[1761685701695,0.0889639,112400.0,112390.0,0.37327565]
[1761685701895,0.4497639,112400.0,112390.0,0.3007]
[1761685702296,0.4497639,112400.0,112390.0,0.52877565]
[1761685702498,0.6018539,112400.0,112390.0,0.2214]
[1761685702687,0.3608,112400.0,112390.0,0.67401565]
[1761685702894,0.3608,112410.0,112400.0,0.1555]
[1761685703095,0.36087142,112420.0,112410.0,0.20184]
[1761685703294,0.36087142,112420.0,112410.0,0.72039565]
[1761685703690,0.36087142,112420.0,112410.0,0.72047565]
[1761685703891,7.142e-05,112420.0,112410.0,0.72315565]
[1761685704092,7.142e-05,112420.0,112410.0,1.68395565]
[1761685704302,0.3608,112430.0,112420.0,0.1555]
[1761685704495,0.3608,112450.0,112440.0,0.20184]
[1761685704798,0.3608,112450.0,112440.0,0.72047565]
[1761685705194,0.3608,112470.0,112460.0,0.1555]
[1761685705394,0.3608,112480.0,112470.0,0.20184]
[1761685705996,0.3608,112490.0,112480.0,0.1555]
[1761685706300,0.36085106,112490.0,112480.0,0.30082]
[1761685706901,0.44974356,112490.0,112480.0,0.30082]
[1761685707204,0.44974356,112490.0,112480.0,0.1555]
[1761685707396,0.44974356,112490.0,112480.0,0.30078]
[1761685707799,0.52777356,112490.0,112480.0,0.1555]
[1761685708002,0.36085106,112490.0,112480.0,0.30074]
[1761685709199,0.36085106,112490.0,112480.0,0.07612]
[1761685709394,0.15209,112460.0,112450.0,0.07823695]
[1761685709607,0.4497122,112470.0,112450.0,0.3005]
[1761685710005,0.0889162,112460.0,112450.0,0.3005]
[1761685710308,0.4497162,112460.0,112450.0,0.3005]
[1761685710498,0.4497162,112460.0,112450.0,0.30098]
[1761685711002,0.3608,112460.0,112450.0,0.30098]
[1761685711201,0.3608,112470.0,112460.0,0.1555]
[1761685711403,0.3608,112470.0,112460.0,0.15818]
[1761685712198,0.3608,112480.0,112470.0,0.1555]
[1761685712408,0.36085106,112490.0,112480.0,0.1555]
[1761685713311,0.44974356,112490.0,112480.0,0.1555]
[1761685713506,0.36085106,112490.0,112480.0,0.1555]
[1761685714527,0.44974356,112490.0,112480.0,0.30062]
[1761685714810,0.44974356,112490.0,112450.0,0.39210475]
[1761685714811,0.0889004,112480.0,112450.0,0.39210475]
[1761685715002,0.5977362,112460.0,112440.0,0.07764475]
[1761685715202,0.50882,112460.0,112440.0,0.04634]
[1761685715408,0.5977363,112460.0,112450.0,0.22052]
[1761685715711,0.3608,112460.0,112450.0,0.29509]
[1761685715909,0.3608,112470.0,112460.0,0.14985]
[1761685716104,0.4497084,112470.0,112460.0,0.17350225]
[1761685716305,0.4497084,112470.0,112460.0,0.31870225]
[1761685716507,0.4497084,112470.0,112460.0,0.14516]
[1761685716508,0.6430484,112470.0,112460.0,0.14516]
[1761685717003,0.2369363,112460.0,112450.0,0.02365225]
[1761685717210,0.3608,112460.0,112450.0,0.32627475]
[1761685717412,0.3608,112460.0,112450.0,0.92895475]
[1761685717608,0.3608,112470.0,112460.0,0.14985]
[1761685717805,0.3608,112470.0,112460.0,0.20481734]
[1761685718002,0.3608,112470.0,112460.0,0.17351259]
[1761685718207,0.3608,112470.0,112460.0,0.20481734]
[1761685718410,0.3608,112470.0,112460.0,0.14985]
[1761685718616,0.3608,112480.0,112470.0,0.19457]
[1761685718814,0.36085106,112490.0,112480.0,0.14985]
[1761685719116,0.36085106,112490.0,112480.0,0.17352465]
[1761685719520,0.36085106,112490.0,112480.0,0.20509106]
[1761685720925,0.50887106,112490.0,112480.0,0.05524106]
[1761685721109,0.50887106,112490.0,112480.0,0.16867465]
[1761685721309,0.50887106,112490.0,112480.0,0.20024106]
[1761685721520,0.50887106,112490.0,112480.0,0.17656641]
[1761685721712,0.50887106,112490.0,112480.0,0.03156641]
[1761685722012,0.50887106,112490.0,112480.0,0.20025268]
[1761685722414,0.50887106,112490.0,112480.0,0.32637641]
[1761685722615,0.50887106,112490.0,112480.0,0.17652641]
[1761685723118,0.50887106,112490.0,112480.0,0.25180641]
[1761685723418,0.36085106,112490.0,112480.0,0.32637641]
[1761685723816,5.106e-05,112490.0,112480.0,0.82142842]
[1761685724316,5.106e-05,112490.0,112480.0,0.86614842]
[1761685724513,5.106e-05,112490.0,112480.0,0.77724772]
[1761685724711,5.106e-05,112490.0,112480.0,0.86614842]
[1761685725010,5.106e-05,112490.0,112480.0,1.78001622]
[1761685725721,5.106e-05,112490.0,112480.0,1.6696842]
[1761685725919,5.106e-05,112490.0,112480.0,1.73226046]
[1761685726621,5.106e-05,112490.0,112480.0,0.62062626]
[1761685726817,0.50887106,112490.0,112480.0,0.04756157]
[1761685727121,0.50887106,112490.0,112480.0,0.50172351]
[1761685727425,0.50887106,112490.0,112480.0,0.04756157]
[1761685727613,0.50887106,112490.0,112480.0,0.19232157]
[1761685727814,0.50887106,112490.0,112480.0,0.47009507]
[1761685728216,0.50887106,112490.0,112480.0,0.04756157]
[1761685728418,0.07463,112480.0,112470.0,0.41562976]
[1761685728622,0.43543,112480.0,112470.0,0.56038976]
[1761685728932,0.3608,112480.0,112470.0,0.63495976]
[1761685729315,0.36085106,112490.0,112480.0,0.19457]
[1761685729514,0.36085106,112490.0,112480.0,0.4723435]
[1761685730412,0.36085106,112490.0,112480.0,0.53491976]
[1761685730616,0.50887106,112490.0,112480.0,0.25714626]
[1761685730809,0.50887106,112490.0,112480.0,0.49019976]
[1761685731313,0.50887106,112490.0,112480.0,0.63491976]
[1761685731819,0.50887106,112490.0,112480.0,0.20713626]
[1761685732023,0.50887106,112490.0,112480.0,0.06257626]
[1761685732220,0.50887106,112490.0,112480.0,0.20709626]
[1761685732608,0.50887106,112490.0,112480.0,0.48486976]
[1761685732818,0.50887106,112490.0,112480.0,0.67943976]
[1761685733517,0.36085106,112490.0,112480.0,0.67943976]
[1761685733714,0.36085106,112490.0,112480.0,0.6168635]
[1761685734112,0.36085106,112490.0,112480.0,0.3530535]
[1761685734113,0.50887106,112490.0,112480.0,0.3530535]
[1761685734417,0.50887106,112490.0,112480.0,0.5720235]
[1761685734622,0.50887106,112490.0,112480.0,0.6167435]
[1761685735418,0.07463,112480.0,112470.0,0.51424832]
[1761685735724,0.50882,112480.0,112470.0,1.1054235]
[1761685735916,0.50882,112480.0,112470.0,1.18520651]
[1761685736316,0.14802,112480.0,112470.0,1.1054235]
[1761685736518,0.36085106,112490.0,112470.0,1.1943323]
[1761685736823,0.50887106,112490.0,112480.0,0.53616869]
[1761685737425,0.50887106,112490.0,112480.0,0.4723435]
[1761685738630,0.36085106,112490.0,112480.0,0.6164635]
[1761685738828,0.36085106,112490.0,112480.0,0.33869]
[1761685739127,0.36085106,112490.0,112480.0,0.6164635]
[1761685739530,0.50887106,112490.0,112480.0,0.4276235]
[1761685739723,0.50887106,112490.0,112480.0,0.5716235]
[1761685740727,0.36085106,112490.0,112480.0,0.6163435]
[1761685740927,5.106e-05,112490.0,112480.0,0.4274709]
[1761685741232,5.106e-05,112490.0,112480.0,0.78502741]
[1761685741421,5.106e-05,112490.0,112480.0,1.14850741]
[1761685741623,5.106e-05,112490.0,112480.0,1.14582741]
[1761685741822,0.14807106,112490.0,112480.0,0.55212651]
[1761685742131,0.14807106,112490.0,112480.0,0.5715035]
[1761685742331,0.50887106,112490.0,112480.0,0.5715035]
[1761685742524,0.50887106,112490.0,112480.0,0.68010531]
[1761685743527,0.14802,112480.0,112470.0,0.22963301]
[1761685743728,0.53371,112480.0,112470.0,0.15435301]
[1761685743924,0.53371,112480.0,112460.0,0.18921865]
[1761685743925,0.14238,112470.0,112460.0,0.18921865]
[1761685744123,0.50318,112470.0,112460.0,0.22354301]
[1761685744335,0.50318,112470.0,112460.0,0.50131651]
[1761685744632,0.50318,112470.0,112460.0,0.22354301]
[1761685744830,0.50318,112470.0,112460.0,0.14376]
[1761685745032,0.50318,112470.0,112460.0,0.20765518]
[1761685746024,0.50318,112470.0,112460.0,0.48542868]
[1761685746331,0.50318,112470.0,112460.0,0.4215335]
[1761685747027,0.50318,112470.0,112460.0,0.66963868]
[1761685747225,0.14238,112470.0,112460.0,0.66963868]
[1761685748234,0.50318,112480.0,112470.0,0.07288]
[1761685748436,0.14238,112470.0,112460.0,0.62698868]
[1761685748631,0.14238,112470.0,112460.0,0.48322868]
[1761685748934,0.50318,112470.0,112460.0,0.48510868]
[1761685749231,0.50318,112470.0,112460.0,0.41454868]
[1761685749430,0.50318,112470.0,112460.0,0.62857868]
[1761685749835,0.14238,112470.0,112460.0,0.67067868]
[1761685750129,0.14238,112470.0,112460.0,0.55790868]
[1761685750332,0.50318,112470.0,112460.0,0.06389518]
[1761685750534,0.16026,112460.0,112450.0,0.06389518]
[1761685750726,0.52106,112460.0,112450.0,0.34166868]
[1761685750923,0.52106,112460.0,112450.0,0.06389518]
[1761685751128,0.52379106,112460.0,112440.0,0.14517247]
[1761685751333,0.49758,112450.0,112440.0,0.00149428]
[1761685751535,0.49758,112450.0,112440.0,0.06539307]
[1761685751727,0.49758,112450.0,112440.0,0.20871307]
[1761685752127,0.49758,112450.0,112440.0,0.06539307]
[1761685752329,0.49758,112450.0,112440.0,0.20871307]
[1761685753230,0.49758,112450.0,112440.0,0.00149428]
[1761685753425,0.06627,112440.0,112430.0,0.00010388]
[1761685753725,0.06627,112440.0,112430.0,0.14338388]
[1761685753726,0.50735106,112440.0,112430.0,0.14338388]
[1761685755037,0.50735106,112440.0,112430.0,0.42115738]
[1761685755333,0.50735106,112440.0,112430.0,0.51009748]
[1761685755739,0.49763106,112440.0,112430.0,0.65236748]
[1761685755937,0.49763106,112440.0,112430.0,0.37459398]
[1761685756233,0.49763106,112440.0,112430.0,0.65236748]
[1761685756439,0.36085106,112440.0,112430.0,0.62732617]
[1761685756635,0.36085106,112440.0,112430.0,0.71626627]
[1761685757040,5.106e-05,112440.0,112430.0,1.07974627]
[1761685757227,5.106e-05,112440.0,112430.0,1.01584748]
[1761685757628,0.42707,112460.0,112450.0,0.14227]
[1761685757835,0.3608,112460.0,112450.0,0.6521678]
[1761685758041,0.3608,112470.0,112460.0,0.18437]
[1761685758242,0.3608,112480.0,112470.0,0.14227]
[1761685758436,0.3608,112490.0,112480.0,0.18437]
[1761685758638,0.13678,112480.0,112470.0,0.28547]
[1761685758833,0.49758,112490.0,112480.0,0.14227]
[1761685759147,0.49758,112490.0,112480.0,0.4200435]
[1761685760240,0.49758,112490.0,112480.0,0.4621435]
[1761685760441,0.3608,112490.0,112480.0,0.4621435]
[1761685761138,0.49758,112490.0,112480.0,0.14227]
[1761685761341,0.13678,112480.0,112470.0,0.5632435]
[1761685762146,0.13678,112480.0,112470.0,0.6521517]
[1761685762339,0.49758,112490.0,112480.0,0.18437]
[1761685762539,0.49758,112490.0,112480.0,0.4200435]
[1761685762843,0.49758,112490.0,112480.0,0.5629235]
[1761685763344,0.49758,112490.0,112480.0,0.6050235]
[1761685763544,0.3608,112490.0,112480.0,0.6050235]
[1761685763744,0.49758,112490.0,112480.0,0.6050235]
[1761685764242,0.49758,112490.0,112480.0,0.14288]
[1761685764550,0.49758,112490.0,112480.0,0.5629235]
[1761685764847,0.17932,112480.0,112470.0,0.06380379]
[1761685765036,0.13678,112470.0,112460.0,0.06380379]
[1761685765236,0.13678,112470.0,112460.0,0.20664379]
[1761685766044,0.13678,112470.0,112460.0,0.06380379]
[1761685766241,0.13678,112470.0,112460.0,0.20656379]
[1761685766441,0.13678,112470.0,112460.0,0.48433729]
[1761685766841,0.49758,112470.0,112460.0,0.06380379]
[1761685767054,0.16563,112460.0,112450.0,0.06380379]
[1761685767247,0.49758,112460.0,112450.0,0.55589729]
[1761685768346,0.49758,112460.0,112450.0,0.48429729]
[1761685768742,0.49758,112460.0,112450.0,0.62656729]
[1761685769246,0.49758,112460.0,112450.0,0.27812379]
[1761685769448,0.49758,112460.0,112450.0,0.62656729]
[1761685770648,0.3608,112470.0,112460.0,0.2311861]
[1761685770841,0.3608,112480.0,112470.0,0.2311783]
[1761685771041,0.3608,112480.0,112470.0,0.71537153]
[1761685771541,0.3608,112490.0,112480.0,0.18437]
[1761685771738,0.49758,112490.0,112480.0,0.0716]
[1761685771939,0.13678,112480.0,112470.0,0.27801973]
[1761685772150,0.13678,112480.0,112470.0,0.62646323]
[1761685772351,0.49758,112480.0,112470.0,0.62646323]
[1761685772847,0.42707,112480.0,112470.0,0.48386323]
[1761685773149,0.3608,112490.0,112480.0,0.18437]
[1761685773452,0.49758,112490.0,112480.0,0.4621435]
[1761685774242,0.49758,112490.0,112480.0,0.18437]
[1761685774950,0.3608,112490.0,112480.0,0.4621435]
[1761685775447,0.3608,112490.0,112480.0,0.18437]
[1761685775758,0.3608,112510.0,112500.0,0.16486]
[1761685775966,0.3608,112520.0,112510.0,0.2163775]
[1761685776253,0.4865,112530.0,112520.0,0.06305]
[1761685776545,0.4865,112530.0,112520.0,0.14232]
[1761685776753,0.4865,112530.0,112520.0,0.30718]
[1761685778751,0.4233,112530.0,112520.0,0.30718]
[1761685779940,0.4865,112530.0,112520.0,0.30718]
[1761685780144,0.1257,112520.0,112510.0,0.1275]
[1761685780343,0.1257,112520.0,112510.0,0.26958]
[1761685780549,0.4865,112520.0,112510.0,0.26954]
[1761685780751,0.1257,112510.0,112500.0,0.16486]
[1761685780948,0.3608,112510.0,112500.0,0.30686]
[1761685781350,0.4865,112520.0,112510.0,0.1275]
[1761685782445,0.3608,112520.0,112510.0,0.49989218]
[1761685782953,0.4233,112520.0,112510.0,0.49989218]
[1761685783145,0.4233,112520.0,112510.0,0.1275]
[1761685783343,0.4233,112520.0,112510.0,0.64197218]
[1761685783554,0.3608,112520.0,112510.0,0.26958]
[1761685783741,0.3608,112520.0,112510.0,0.64197218]
[1761685784141,0.4865,112530.0,112520.0,0.10181]
[1761685784346,0.3608,112530.0,112520.0,0.53725218]
[1761685784939,0.4865,112530.0,112520.0,0.53725218]
[1761685785345,0.4865,112530.0,112520.0,0.16486]
[1761685785539,0.4865,112530.0,112520.0,0.1275]
[1761685785747,0.1257,112510.0,112500.0,0.16486]
[1761685785945,0.4865,112510.0,112500.0,0.37051973]
[1761685786154,0.4865,112510.0,112500.0,0.3067]
[1761685789355,0.4233,112510.0,112500.0,0.3067]
[1761685789563,0.3608,112510.0,112500.0,0.3067]
[1761685789749,0.4865,112510.0,112500.0,0.3067]
[1761685789953,0.4865,112510.0,112500.0,0.16486]
[1761685790260,0.1257,112490.0,112480.0,0.60430287]